[Event "3eme tournoi de MI de JUVISY"]
[Site "Juvisy/Orge, France"]
[Date "2019.06.30"]
[Round "2.3"]
[White "GEVORGYAN, David Sh"]
[Black "HARUTYUNYAN, Ruben"]
[Result "1/2-1/2"]
[ECO "E49"]
[WhiteElo "2321"]
[BlackElo "2316"]
[PlyCount "107"]
[EventDate "2019.??.??"]
[WhiteTeam "Club 608"]
[BlackTeam "Clichy-Echecs-92"]
[TimeControl "6600+1390"]
[WhiteClock "0:00:59"]
[BlackClock "0:03:46"]

1. d4 {[%emt 0:00:02]} Nf6 {[%emt 0:00:02]} 2. c4 {[%emt 0:00:12]} e6 {[%emt 0:
00:03]} 3. Nc3 {[%emt 0:00:16]} Bb4 {[%emt 0:00:04]} 4. e3 {[%emt 0:00:25]} O-O
{[%emt 0:00:05]} 5. Bd3 {[%emt 0:00:25]} d5 {[%emt 0:00:10]} 6. a3 Bxc3+ {
[%emt 0:01:56]} 7. bxc3 {[%emt 0:00:12]} dxc4 {[%emt 0:01:02]} 8. Bxc4 {[%emt
0:00:27]} c5 {[%emt 0:00:03]} 9. Ne2 {[%emt 0:00:06]} Qc7 {[%emt 0:00:36]} 10.
Bd3 {[%emt 0:00:06]} b6 {[%emt 0:02:37]} 11. O-O {[%emt 0:01:12]} Ba6 {[%emt 0:
01:10]} 12. Bxa6 {[%emt 0:00:06]} Nxa6 {[%emt 0:00:04]} 13. Qd3 {[%emt 0:12:17]
} Nb8 {[%emt 0:04:52]} 14. e4 {[%emt 0:05:09]} Nc6 {[%emt 0:23:39]} 15. Bg5 {
[%emt 0:13:04]} Nd7 {[%emt 0:03:54]} 16. f4 {[%emt 0:18:17]} f5 {[%emt 0:18:59]
} 17. Qc4 {[%emt 0:11:37]} Kh8 {[%emt 0:06:43]} 18. exf5 {[%emt 0:07:03]} exf5
{[%emt 0:03:17]} 19. d5 {[%emt 0:00:16]} Na5 {[%emt 0:04:19]} 20. Qd3 {[%emt 0:
01:25]} c4 {[%emt 0:03:05]} 21. Qf3 {[%emt 0:00:24]} Nb3 {[%emt 0:07:15]} 22.
Rad1 {[%emt 0:00:05]} Qd6 {[%emt 0:13:53]} 23. g4 {[%emt 0:05:48]} Qxa3 {[%emt
0:11:13]} 24. gxf5 {[%emt 0:09:45]} Qc5+ {[%emt 0:01:31]} 25. Kh1 {[%emt 0:02:
18]} Rae8 {[%emt 0:01:07]} 26. Ng3 {[%emt 0:08:33]} Re3 {[%emt 0:02:49]} 27.
Qg2 {[%emt 0:00:22]} Rfe8 {[%emt 0:00:20]} 28. d6 {[%emt 0:00:30]} Rd3 {[%emt
0:00:38]} 29. Be7 {[%emt 0:00:26]} Rxd1 {[%emt 0:00:23]} 30. Rxd1 {[%emt 0:00:
04]} Rg8 {[%emt 0:00:41]} 31. Qe4 {[%emt 0:09:46]} Qc8 {[%emt 0:00:27]} 32. Kg1
{[%emt 0:01:18]} Qa8 {[%emt 0:00:36]} 33. Qxc4 {[%emt 0:00:45]} Nbc5 {[%emt 0:
00:13]} 34. Rd5 {[%emt 0:01:25]} a5 {[%emt 0:00:45]} 35. f6 {[%emt 0:01:40]}
Nxf6 {[%emt 0:00:17]} 36. Bxf6 {[%emt 0:00:06]} gxf6 {[%emt 0:00:08]} 37. Qd4 {
[%emt 0:00:23]} Qd8 {[%emt 0:00:26]} 38. Kf1 {[%emt 0:00:46]} a4 {[%emt 0:01:
01]} 39. Nh5 {[%emt 0:00:28]} Nd7 {[%emt 0:00:43]} 40. Qxa4 {[%emt 0:00:48]}
Qe8 {[%emt 0:00:22]} 41. Qd4 {[%emt 0:23:11]} Qg6 {[%emt 0:08:30]} 42. Rg5 {
[%emt 0:05:34]} Qb1+ {[%emt 0:01:57]} 43. Kg2 {[%emt 0:00:44]} Qc2+ {[%emt 0:
08:47]} 44. Kg3 {[%emt 0:02:29]} Rc8 {[%emt 0:05:34]} 45. Nxf6 {[%emt 0:06:14]}
Qxc3+ {[%emt 0:00:30]} 46. Qxc3 {[%emt 0:00:04]} Rxc3+ {[%emt 0:00:03]} 47. Kg4
{[%emt 0:00:05]} Nxf6+ {[%emt 0:00:06]} 48. Kf5 {[%emt 0:00:03]} Nd7 {[%emt 0:
02:51]} 49. Ke6 {[%emt 0:00:15]} h6 {[%emt 0:06:41]} 50. Rg3 {[%emt 0:04:57]}
Nc5+ {[%emt 0:02:28]} 51. Kf7 {[%emt 0:01:43]} Rc4 {[%emt 0:05:49]} 52. Rg8+ {
[%emt 0:00:47]} Kh7 {[%emt 0:00:05]} 53. Rg7+ {[%emt 0:00:03]} Kh8 {[%emt 0:00:
03]} 54. Rg8+ {[%emt 0:00:11] Rd4 [%emt 00:00:28]} 1/2-1/2

[Event "3eme tournoi de MI de JUVISY"]
[Site "Juvisy/Orge, France"]
[Date "2019.07.02"]
[Round "4.2"]
[White "Delorme, Alban"]
[Black "Belkhodja, Slim"]
[Result "1/2-1/2"]
[ECO "B33"]
[WhiteElo "2327"]
[BlackElo "2416"]
[PlyCount "24"]
[EventDate "2019.??.??"]
[WhiteTeam "Echecs 16"]
[BlackTeam "J.E.E.N"]
[TimeControl "5400+55"]
[WhiteClock "1:27:45"]
[BlackClock "1:27:31"]

1. e4 {[%emt 0:28:55]} c5 {[%emt 0:00:21]} 2. Nf3 {[%emt 0:00:39]} Nc6 {[%emt
0:00:56]} 3. d4 {[%emt 0:00:22]} cxd4 {[%emt 0:00:08]} 4. Nxd4 {[%emt 0:00:11]}
e5 {[%emt 0:00:29]} 5. Nb5 {[%emt 0:00:16]} Nf6 {[%emt 0:00:07]} 6. Bg5 {[%emt
0:01:24]} d6 {[%emt 0:01:13]} 7. N1c3 {[%emt 0:00:07]} a6 {[%emt 0:00:25]} 8.
Na3 {[%emt 0:00:08]} b5 {[%emt 0:00:12]} 9. Nd5 {[%emt 0:00:25]} Qa5+ {[%emt 0:
00:23]} 10. Bd2 {[%emt 0:00:14]} Qd8 {[%emt 0:00:10]} 11. Bg5 {[%emt 0:00:13]}
Qa5+ {[%emt 0:00:08]} 12. Bd2 {[%emt 0:00:08]} Qd8 {[%emt 0:00:06]} 1/2-1/2

[Event "3eme tournoi de MI de JUVISY"]
[Site "Juvisy/Orge, France"]
[Date "2019.07.02"]
[Round "4.3"]
[White "Gevorgyan, David"]
[Black "Mouhamad, Joachin"]
[Result "1/2-1/2"]
[ECO "D90"]
[WhiteElo "2321"]
[BlackElo "2302"]
[PlyCount "96"]
[EventDate "2019.??.??"]
[WhiteTeam "Club 608 d'Echecs Paris"]
[BlackTeam "Clichy-Echecs-92"]
[TimeControl "6600+2115"]
[WhiteClock "0:04:01"]
[BlackClock "0:13:01"]

1. d4 {[%emt 0:00:03]} Nf6 {[%emt 0:00:13]} 2. c4 {[%emt 0:00:05]} g6 {[%emt 0:
00:23]} 3. Nc3 {[%emt 0:00:05]} d5 {[%emt 0:00:07]} 4. cxd5 {[%emt 0:02:53]}
Nxd5 {[%emt 0:00:02]} 5. Bd2 {[%emt 0:01:01]} Bg7 6. e4 Nxc3 {[%emt 0:01:41]}
7. Bxc3 {[%emt 0:01:16]} O-O 8. Nf3 {[%emt 0:02:03]} c5 {[%emt 0:00:17]} 9. d5
{[%emt 0:03:12]} Bxc3+ {[%emt 0:00:04]} 10. bxc3 {[%emt 0:00:03]} Bg4 {[%emt 0:
00:12]} 11. Be2 {[%emt 0:02:26]} Bxf3 {[%emt 0:00:07]} 12. Bxf3 {[%emt 0:00:10]
} Nd7 {[%emt 0:00:42]} 13. O-O {[%emt 0:00:43]} Qc7 {[%emt 0:06:12]} 14. c4 {
[%emt 0:11:09]} Rad8 {[%emt 0:09:07]} 15. Qb3 {[%emt 0:06:15]} e5 {[%emt 0:10:
40]} 16. Rab1 {[%emt 0:00:34]} b6 {[%emt 0:01:13]} 17. Qd3 {[%emt 0:04:11]} Nf6
{[%emt 0:08:47]} 18. g3 {[%emt 0:09:40]} Ne8 {[%emt 0:00:02]} 19. Bg4 {[%emt 0:
23:06]} Nd6 {[%emt 0:00:33]} 20. f4 Qe7 {[%emt 0:16:33]} 21. Rbe1 Rfe8 {[%emt
0:14:13]} 22. f5 {[%emt 0:07:21]} Qg5 {[%emt 0:00:50]} 23. Qe2 {[%emt 0:02:15]}
h5 {[%emt 0:35:43]} 24. Bh3 {[%emt 0:00:13]} Rf8 {[%emt 0:02:10]} 25. Rf3 {
[%emt 0:04:16]} Qh6 {[%emt 0:00:55]} 26. f6 {[%emt 0:09:12]} Kh8 {[%emt 0:06:
54]} 27. Rf2 {[%emt 0:00:29]} Rg8 {[%emt 0:00:39]} 28. Bf1 {[%emt 0:05:47]} g5
{[%emt 0:00:27]} 29. Qb2 {[%emt 0:00:22]} Rde8 {[%emt 0:00:39]} 30. Qa3 {[%emt
0:00:17]} Ra8 {[%emt 0:08:06]} 31. Qc3 {[%emt 0:00:12]} Rae8 {[%emt 0:00:07]}
32. Bd3 {[%emt 0:01:17]} Rg6 {[%emt 0:00:34]} 33. Ref1 {[%emt 0:00:11]} g4 {
[%emt 0:00:39]} 34. Qe1 {[%emt 0:00:20]} Qg5 {[%emt 0:00:49]} 35. Qe2 {[%emt 0:
00:32]} Rh6 {[%emt 0:00:52]} 36. Bc2 {[%emt 0:01:04]} Rg8 {[%emt 0:00:38]} 37.
Ba4 {[%emt 0:00:39]} Rgg6 {[%emt 0:00:19]} 38. Bd7 {[%emt 0:00:19]} Rxf6 {
[%emt 0:00:11]} 39. Bf5 {[%emt 0:00:14]} Kg7 {[%emt 0:02:19]} 40. Kg2 {[%emt 0:
00:44]} Rh8 {[%emt 0:00:32]} 41. h4 {[%emt 0:29:32]} Qh6 {[%emt 0:03:59]} 42.
a4 {[%emt 0:02:37]} Rb8 {[%emt 0:00:22]} 43. Qd3 {[%emt 0:00:48]} Re8 {[%emt 0:
03:19]} 44. Qc3 {[%emt 0:02:38]} Re7 {[%emt 0:02:45]} 45. Kh2 {[%emt 0:03:19]}
Nb7 {[%emt 0:17:34]} 46. Kg2 {[%emt 0:01:41]} Nd6 {[%emt 0:03:04]} 47. Kh2 {
[%emt 0:00:04]} Re8 {[%emt 0:00:33]} 48. Kg2 {[%emt 0:00:04]} Re7 {[%emt 0:02:
39]} 1/2-1/2

[Event "3eme tournoi de MI de JUVISY"]
[Site "Juvisy/Orge, France"]
[Date "2019.07.02"]
[Round "4.4"]
[White "Bon, Michael"]
[Black "Nguyen, Vincent"]
[Result "1-0"]
[ECO "C01"]
[WhiteElo "2400"]
[BlackElo "2315"]
[PlyCount "49"]
[EventDate "2019.??.??"]
[WhiteTeam "Club du Canal St-Martin Paris"]
[BlackTeam "La tour de Juvisy"]
[TimeControl "6600+2000"]
[WhiteClock "0:05:55"]
[BlackClock "0:16:52"]

1. e4 {[%emt 0:00:03]} e6 {[%emt 0:00:04]} 2. d4 {[%emt 0:00:08]} d5 {[%emt 0:
00:04]} 3. exd5 {[%emt 0:00:23]} exd5 {[%emt 0:00:05]} 4. Nf3 {[%emt 0:00:05]}
Bf5 {[%emt 0:01:22]} 5. c4 {[%emt 0:04:45]} Nc6 {[%emt 0:03:25]} 6. cxd5 {
[%emt 0:11:23]} Qxd5 {[%emt 0:33:46]} 7. Nc3 {[%emt 0:01:25]} Bb4 {[%emt 0:01:
19]} 8. Bd2 {[%emt 0:10:09]} Qe6+ {[%emt 0:04:58]} 9. Be2 {[%emt 0:30:02]} Nf6
{[%emt 0:06:32]} 10. O-O {[%emt 0:07:31]} O-O-O {[%emt 0:08:38]} 11. Be3 {
[%emt 0:05:59]} h6 {[%emt 0:15:02]} 12. Qa4 {[%emt 0:01:13]} Nd5 {[%emt 0:06:
21]} 13. Nxd5 {[%emt 0:03:04]} Qxd5 {[%emt 0:00:06]} 14. Rac1 {[%emt 0:00:12]}
Bd6 {[%emt 0:00:57]} 15. b4 {[%emt 0:14:14]} Be4 {[%emt 0:01:40]} 16. b5 {
[%emt 0:01:05]} Nb8 {[%emt 0:00:09]} 17. Qxa7 {[%emt 0:01:56]} Qh5 {[%emt 0:02:
28]} 18. Rfe1 {[%emt 0:02:18]} f5 {[%emt 0:03:43]} 19. Ne5 {[%emt 0:03:05]} Qh4
{[%emt 0:00:51]} 20. f4 {[%emt 0:00:06]} Qf6 {[%emt 0:00:25]} 21. Nc4 {[%emt 0:
06:07]} Kd7 {[%emt 0:00:21]} 22. d5 {[%emt 0:00:41]} g5 {[%emt 0:01:16]} 23.
Bd4 {[%emt 0:00:36]} Qf8 {[%emt 0:01:07]} 24. Nxd6 {[%emt 0:00:31]} cxd6 {
[%emt 0:00:56]} 25. Qxb7+ {[%emt 0:00:09]} 1-0

[Event "3eme tournoi de MI de JUVISY"]
[Site "Juvisy/Orge, France"]
[Date "2019.07.03"]
[Round "5.1"]
[White "HARUTYUNYAN, Ruben"]
[Black "ONKOUD, Abdelaziz"]
[Result "1-0"]
[ECO "B07"]
[WhiteElo "2316"]
[BlackElo "2328"]
[PlyCount "33"]
[EventDate "2019.??.??"]
[WhiteTeam "Clichy-Echecs 92"]
[BlackTeam "Livry-gargan"]
[TimeControl "6600+1570"]
[WhiteClock "0:28:06"]
[BlackClock "1:07:58"]

1. e4 {[%emt 0:00:02]} d6 {[%emt 0:00:55]} 2. d4 {[%emt 0:00:07]} Nf6 {[%emt 0:
00:05]} 3. Nc3 {[%emt 0:00:05]} c6 {[%emt 0:00:38]} 4. f4 {[%emt 0:00:04]} Qa5
{[%emt 0:00:19]} 5. Bd3 {[%emt 0:00:06]} e5 {[%emt 0:00:17]} 6. Nf3 {[%emt 0:
00:07]} exd4 {[%emt 0:00:48]} 7. Nxd4 {[%emt 0:00:07]} g6 {[%emt 0:00:05]} 8.
O-O {[%emt 0:00:12]} Bg7 {[%emt 0:01:51]} 9. Kh1 {[%emt 0:00:05]} O-O {[%emt 0:
00:21]} 10. f5 {[%emt 0:00:11]} Nbd7 {[%emt 0:02:02]} 11. Qe1 {[%emt 0:00:07]}
Re8 {[%emt 0:05:34]} 12. Qh4 {[%emt 0:01:11]} d5 {[%emt 0:00:56]} 13. fxg6 {
[%emt 0:26:41]} hxg6 {[%emt 0:00:59]} 14. Bh6 {[%emt 0:11:20]} dxe4 {[%emt 0:
06:52]} 15. Nf5 {[%emt 0:21:00]} Bh8 {[%emt 0:04:11]} 16. Nxe4 {[%emt 0:08:41]}
Re5 {[%emt 0:14:35]} 17. Bd2 {[%emt 0:10:50]} 1-0

[ePGN "0.1;DGT LiveChess/2.2.4"]

[Event "3eme tournoi de MI de JUVISY"]
[Site "Juvisy/Orge, France"]
[Date "2019.07.03"]
[Round "5.2"]
[White "NGUYEN, Vincent"]
[Black "LAZO, Andrei"]
[Result "1-0"]
[ECO "B40"]
[WhiteElo "2315"]
[BlackElo "2279"]
[PlyCount "33"]
[EventDate "2019.??.??"]
[TimeControl "6600+2010"]
[WhiteClock "0:37:47"]
[BlackClock "0:50:56"]

1. e4 {[%emt 0:24:16]} e6 {[%emt 0:00:06]} 2. d4 {[%emt 0:00:05]} d5 {[%emt 0:
00:04]} 3. Nd2 {[%emt 0:00:03]} c5 {[%emt 0:00:08]} 4. Ngf3 {[%emt 0:00:21]}
cxd4 {[%emt 0:00:10]} 5. Nxd4 {[%emt 0:00:05]} Nc6 {[%emt 0:00:13]} 6. Nxc6 {
[%emt 0:00:06]} bxc6 {[%emt 0:00:05]} 7. Bd3 {[%emt 0:00:03]} Nf6 {[%emt 0:00:
53]} 8. O-O {[%emt 0:00:25]} Qc7 {[%emt 0:01:17]} 9. f4 {[%emt 0:20:58]} dxe4 {
[%emt 0:33:55]} 10. Nxe4 {[%emt 0:01:12]} Nxe4 {[%emt 0:00:23]} 11. Bxe4 {
[%emt 0:00:04]} Ba6 {[%emt 0:00:24]} 12. Rf3 {[%emt 0:02:30]} Bc5+ {[%emt 0:03:
00]} 13. Kh1 {[%emt 0:03:47]} Rd8 {[%emt 0:01:44]} 14. Qe1 {[%emt 0:03:42]} O-O
{[%emt 0:04:18]} 15. Bd2 {[%emt 0:02:50]} Qd6 {[%emt 0:04:21]} 16. Ba5 {[%emt
0:07:06]} Rd7 {[%emt 0:06:29]} 17. Qh4 {[%emt 0:03:40]} 1-0

[Event "3eme tournoi de MI de JUVISY"]
[Site "Juvisy/Orge, France"]
[Date "2019.07.03"]
[Round "5.4"]
[White "BELKHODJA, Slim"]
[Black "GEVORGYAN, David Sh"]
[Result "1/2-1/2"]
[ECO "A13"]
[WhiteElo "2416"]
[BlackElo "2321"]
[PlyCount "34"]
[EventDate "2019.??.??"]
[TimeControl "6600+1110"]
[WhiteClock "0:53:50"]
[BlackClock "0:40:57"]

1. b3 {[%emt 0:00:48]} d5 {[%emt 0:01:15]} 2. Bb2 {[%emt 0:01:15]} c5 {[%emt 0:
00:27]} 3. e3 {[%emt 0:02:33]} e6 {[%emt 0:02:40]} 4. Nf3 {[%emt 0:05:24]} Nf6
{[%emt 0:00:26]} 5. c4 {[%emt 0:04:28]} Be7 {[%emt 0:06:42]} 6. cxd5 {[%emt 0:
00:59]} Qxd5 {[%emt 0:00:55]} 7. Be2 {[%emt 0:04:51]} O-O {[%emt 0:01:00]} 8.
O-O {[%emt 0:00:49]} Nc6 {[%emt 0:00:25]} 9. d3 {[%emt 0:05:37]} b6 {[%emt 0:
02:01]} 10. Nbd2 {[%emt 0:00:53]} Bb7 {[%emt 0:00:30]} 11. a3 {[%emt 0:00:41]}
Rfd8 {[%emt 0:11:37]} 12. Qc2 {[%emt 0:01:13]} Rac8 {[%emt 0:00:48]} 13. Rad1 {
[%emt 0:00:49]} Qd7 {[%emt 0:18:56]} 14. Qb1 {[%emt 0:04:44]} Nd5 {[%emt 0:06:
03]} 15. Rfe1 {[%emt 0:10:23]} Bf6 {[%emt 0:08:11]} 16. Bxf6 {[%emt 0:01:07]}
Nxf6 {[%emt 0:00:11]} 17. Qb2 {[%emt 0:08:32]} Qe7 {[%emt 0:05:57]} 1/2-1/2

[ePGN "0.1;DGT LiveChess/2.2.4"]

[Event "3eme tournoi de MI de JUVISY"]
[Site "Juvisy/Orge, France"]
[Date "2019.07.03"]
[Round "5.3"]
[White "MOUHAMAD, Joachim"]
[Black "BON, Michael"]
[Result "0-1"]
[ECO "B66"]
[WhiteElo "2302"]
[BlackElo "2400"]
[PlyCount "32"]
[EventDate "2019.??.??"]
[TimeControl "6600+1310"]
[WhiteClock "0:40:42"]
[BlackClock "0:51:57"]

1. e4 {[%emt 0:02:06]} c5 {[%emt 0:00:07]} 2. Nf3 d6 {[%emt 0:00:39]} 3. d4 {
[%emt 0:00:07]} cxd4 {[%emt 0:00:04]} 4. Nxd4 {[%emt 0:00:03]} Nf6 {[%emt 0:00:
05]} 5. Nc3 {[%emt 0:00:07]} Nc6 {[%emt 0:01:20]} 6. Bg5 {[%emt 0:00:15]} e6 {
[%emt 0:01:51]} 7. Qd2 {[%emt 0:00:31]} a6 {[%emt 0:02:17]} 8. O-O-O {[%emt 0:
00:34]} h6 {[%emt 0:02:07]} 9. Be3 {[%emt 0:03:02]} Qc7 {[%emt 0:02:26]} 10. f3
{[%emt 0:04:23]} Be7 {[%emt 0:08:34]} 11. g4 {[%emt 0:00:44]} Nd7 {[%emt 0:09:
43]} 12. f4 {[%emt 0:12:34]} b5 {[%emt 0:05:40]} 13. Nxc6 {[%emt 0:22:17]} Qxc6
{[%emt 0:03:32]} 14. Bg2 {[%emt 0:01:28]} Bb7 {[%emt 0:00:35]} 15. Rhe1 {[%emt
0:10:39]} Rg8 {[%emt 0:15:32]} 16. Kb1 {[%emt 0:08:23]} g5 {[%emt 0:02:33]} 0-1

[Event "3eme tournoi de MI de JUVISY"]
[Site "Juvisy/Orge, France"]
[Date "2019.07.05"]
[Round "7.3"]
[White "BELKHODJA, Slim"]
[Black "LAZO, Andrei"]
[Result "1-0"]
[ECO "C00"]
[WhiteElo "2416"]
[BlackElo "2279"]
[PlyCount "70"]
[EventDate "2019.??.??"]
[WhiteTeam "J.E.E.N"]
[BlackTeam "Canal St Martin"]
[TimeControl "6600+450"]
[WhiteClock "0:29:42"]
[BlackClock "0:47:38"]

1. e4 {[%emt 0:16:40]} e6 {[%emt 0:00:07]} 2. Nf3 {[%emt 0:00:35]} d5 {[%emt 0:
00:12]} 3. e5 {[%emt 0:02:52]} c5 {[%emt 0:00:15]} 4. b4 {[%emt 0:00:06]} b6 {
[%emt 0:04:22]} 5. bxc5 {[%emt 0:03:57]} bxc5 {[%emt 0:00:10]} 6. c4 {[%emt 0:
02:40]} d4 {[%emt 0:02:11]} 7. g3 {[%emt 0:02:40]} Bb7 {[%emt 0:02:10]} 8. Bg2
{[%emt 0:01:57]} Nc6 {[%emt 0:03:58]} 9. O-O {[%emt 0:00:20]} Qc7 {[%emt 0:00:
41]} 10. d3 {[%emt 0:02:31]} Nge7 {[%emt 0:01:56]} 11. Re1 {[%emt 0:05:00]} Nf5
{[%emt 0:05:45]} 12. Nbd2 {[%emt 0:02:32]} h5 {[%emt 0:07:01]} 13. h4 {[%emt 0:
00:32]} Be7 {[%emt 0:00:52]} 14. Ne4 {[%emt 0:01:10]} f6 {[%emt 0:03:40]} 15.
Rb1 {[%emt 0:03:21]} Rb8 {[%emt 0:04:31]} 16. exf6 {[%emt 0:01:55]} gxf6 {
[%emt 0:00:17]} 17. Nxf6+ {[%emt 0:00:43]} Bxf6 {[%emt 0:00:25]} 18. Rxe6+ {
[%emt 0:02:07]} Kf7 {[%emt 0:01:42]} 19. Rxb7 {[%emt 0:01:04]} Qxb7 {[%emt 0:
02:14]} 20. Rxc6 {[%emt 0:04:24]} Qxc6 {[%emt 0:06:07]} 21. Ng5+ {[%emt 0:01:
30]} Bxg5 {[%emt 0:00:09]} 22. Bxc6 {[%emt 0:00:05]} Bxc1 {[%emt 0:02:02]} 23.
Bd5+ {[%emt 0:05:58]} Ke7 {[%emt 0:01:01]} 24. Qxc1 {[%emt 0:00:07]} Rhf8 {
[%emt 0:02:54]} 25. Qf4 {[%emt 0:05:55]} Rb1+ {[%emt 0:02:44]} 26. Kh2 {[%emt
0:00:07]} Rb2 {[%emt 0:00:55]} 27. Qc7+ {[%emt 0:00:31]} Kf6 {[%emt 0:00:22]}
28. Kg1 {[%emt 0:01:05]} Rb1+ {[%emt 0:03:29]} 29. Kg2 {[%emt 0:00:09]} Rb2 {
[%emt 0:00:12]} 30. Qxc5 {[%emt 0:07:58]} Kg7 {[%emt 0:02:22]} 31. Qc7+ {[%emt
0:01:56]} Kf6 {[%emt 0:01:13]} 32. Qf4 {[%emt 0:02:24]} Ke7 {[%emt 0:00:28]}
33. Kh3 {[%emt 0:01:13]} Re2 {[%emt 0:02:26]} 34. Be4 {[%emt 0:01:51]} Nd6 {
[%emt 0:01:14]} 35. Qe5+ {[%emt 0:00:10]} Kd7 {[%emt 0:01:15]} 1-0

[Event "3eme tournoi de MI de JUVISY"]
[Site "Juvisy/Orge, France"]
[Date "2019.07.05"]
[Round "7.1"]
[White "NGUYEN, Vincent"]
[Black "ONKOUD, Abdelaziz"]
[Result "1-0"]
[ECO "B06"]
[WhiteElo "2315"]
[BlackElo "2328"]
[PlyCount "77"]
[EventDate "2019.??.??"]
[WhiteTeam "Juvisy"]
[BlackTeam "Livry-Gargan"]
[WhiteTeamCountry "FRA"]
[TimeControl "6600+1080"]
[WhiteClock "0:15:13"]
[BlackClock "0:46:22"]

1. e4 {[%emt 0:00:02]} d6 {[%emt 0:00:10]} 2. d4 {[%emt 0:00:05]} g6 {[%emt 0:
00:03]} 3. Nc3 {[%emt 0:00:05]} Bg7 {[%emt 0:00:04]} 4. Be3 {[%emt 0:00:32]} a6
{[%emt 0:00:22]} 5. a4 {[%emt 0:00:55]} e6 {[%emt 0:00:21]} 6. g3 {[%emt 0:01:
25]} Ne7 {[%emt 0:05:51]} 7. Bg2 {[%emt 0:00:09]} Nd7 {[%emt 0:00:46]} 8. Nge2
{[%emt 0:00:57]} b6 {[%emt 0:00:49]} 9. Qd2 {[%emt 0:01:17]} h6 {[%emt 0:00:24]
} 10. O-O {[%emt 0:00:19]} Bb7 {[%emt 0:00:14]} 11. Rad1 {[%emt 0:02:21]} c6 {
[%emt 0:06:23]} 12. f4 {[%emt 0:11:46]} f5 {[%emt 0:05:26]} 13. d5 {[%emt 0:17:
44]} exd5 {[%emt 0:00:44]} 14. Bd4 {[%emt 0:02:42]} Nf6 {[%emt 0:06:02]} 15. e5
{[%emt 0:05:55]} dxe5 {[%emt 0:01:35]} 16. fxe5 {[%emt 0:00:05]} Ne4 {[%emt 0:
00:15]} 17. Nxe4 {[%emt 0:01:29]} dxe4 {[%emt 0:00:34]} 18. Nf4 {[%emt 0:00:14]
} Bc8 {[%emt 0:10:05]} 19. Qf2 {[%emt 0:01:07]} Rb8 {[%emt 0:00:49]} 20. Bc5 {
[%emt 0:18:26]} Qc7 {[%emt 0:00:10]} 21. Bd6 {[%emt 0:00:06]} Qb7 {[%emt 0:00:
15]} 22. Bxe4 {[%emt 0:01:29]} O-O {[%emt 0:04:29]} 23. Bg2 {[%emt 0:10:54]}
Kh7 {[%emt 0:01:02]} 24. Rfe1 {[%emt 0:00:11]} Ra8 {[%emt 0:01:23]} 25. b4 {
[%emt 0:01:15]} b5 {[%emt 0:01:58]} 26. a5 {[%emt 0:00:39]} g5 {[%emt 0:00:50]}
27. Nd3 {[%emt 0:03:56]} f4 {[%emt 0:03:23]} 28. Nc5 {[%emt 0:00:52]} Qa7 {
[%emt 0:00:07]} 29. e6 {[%emt 0:00:26]} f3 {[%emt 0:03:35]} 30. Bxf3 {[%emt 0:
03:32]} Kg8 {[%emt 0:00:07]} 31. g4 {[%emt 0:01:33]} Rf6 {[%emt 0:09:21]} 32.
Be5 {[%emt 0:06:37]} Rf8 {[%emt 0:00:06]} 33. Bxg7 {[%emt 0:00:51]} Kxg7 {
[%emt 0:00:02]} 34. Qd4+ {[%emt 0:00:19]} Kg8 {[%emt 0:00:09]} 35. Be4 {[%emt
0:00:19]} Qc7 {[%emt 0:00:24]} 36. Rf1 {[%emt 0:02:08]} Rf4 {[%emt 0:03:39]}
37. Rxf4 {[%emt 0:01:20]} Qxf4 {[%emt 0:00:15]} 38. Qd8+ {[%emt 0:00:19]} Qf8 {
[%emt 0:00:48]} 39. Qc7 {[%emt 0:00:30]} 1-0

[Event "3eme tournoi de MI de JUVISY"]
[Site "Juvisy/Orge, France"]
[Date "2019.07.05"]
[Round "7.2"]
[White "MOUHAMAD, Joachim"]
[Black "HARUTYUNYAN, Ruben"]
[Result "1-0"]
[ECO "B67"]
[WhiteElo "2302"]
[BlackElo "2316"]
[PlyCount "91"]
[EventDate "2019.??.??"]
[WhiteTeam "Clichy Echecs 92"]
[BlackTeam "Clichy Echecs 92"]
[TimeControl "3600+545"]
[WhiteClock "0:56:33"]
[BlackClock "0:41:48"]

1. e4 {[%emt 1:10:48]} c5 {[%emt 0:00:04]} 2. Nf3 {[%emt 0:00:07]} d6 {[%emt 0:
00:04]} 3. d4 {[%emt 0:00:06]} cxd4 {[%emt 0:00:03]} 4. Nxd4 {[%emt 0:00:07]}
Nf6 {[%emt 0:00:03]} 5. Nc3 {[%emt 0:00:08]} Nc6 {[%emt 0:00:03]} 6. Bg5 {
[%emt 0:00:06]} e6 {[%emt 0:00:04]} 7. Qd2 {[%emt 0:00:10]} a6 {[%emt 0:00:04]}
8. O-O-O {[%emt 0:00:09]} Bd7 {[%emt 0:00:02]} 9. f4 {[%emt 0:00:18]} h6 {
[%emt 0:00:04]} 10. Bh4 {[%emt 0:00:16]} g5 {[%emt 0:00:04]} 11. fxg5 {[%emt 0:
00:18]} Ng4 {[%emt 0:00:05]} 12. Be2 {[%emt 0:00:08]} Nge5 {[%emt 0:00:05]} 13.
Nf3 {[%emt 0:00:12]} Be7 {[%emt 0:00:05]} 14. Bf2 {[%emt 0:00:07]} hxg5 {[%emt
0:01:24]} 15. Na4 {[%emt 0:00:21]} b5 {[%emt 0:09:53]} 16. Nb6 {[%emt 0:01:21]}
Rb8 {[%emt 0:00:20]} 17. Nxd7 {[%emt 0:01:10]} Nxd7 {[%emt 0:05:39]} 18. Qc3 {
[%emt 0:15:09]} Nce5 {[%emt 0:02:12]} 19. Nxe5 {[%emt 0:00:07]} Nxe5 {[%emt 0:
03:17]} 20. h3 {[%emt 0:01:52]} Rc8 {[%emt 0:02:32]} 21. Qb3 {[%emt 0:00:55]}
Nc4 {[%emt 0:07:11]} 22. Rhf1 {[%emt 0:04:21]} Qc7 {[%emt 0:12:29]} 23. Bd4 {
[%emt 0:27:09]} Rh4 {[%emt 0:00:04]} 24. Bg4 {[%emt 0:00:38]} Ne5 {[%emt 0:02:
51]} 25. Bxe5 {[%emt 0:08:06]} dxe5 {[%emt 0:00:05]} 26. Rf3 {[%emt 0:02:15]}
Rh6 {[%emt 0:01:57]} 27. Rdf1 {[%emt 0:01:01]} Bc5 {[%emt 0:00:54]} 28. a4 {
[%emt 0:09:32]} b4 {[%emt 0:00:39]} 29. Qd3 {[%emt 0:01:34]} Bd4 {[%emt 0:01:
37]} 30. Rxf7 {[%emt 0:00:21]} Qxf7 {[%emt 0:00:40]} 31. Rxf7 {[%emt 0:00:09]}
Kxf7 {[%emt 0:00:02]} 32. Qxa6 {[%emt 0:00:11]} Rc7 {[%emt 0:01:15]} 33. Qd6 {
[%emt 0:00:46]} Rb7 {[%emt 0:00:31]} 34. a5 {[%emt 0:04:19]} Rf6 {[%emt 0:00:
29]} 35. a6 {[%emt 0:00:41]} Ra7 {[%emt 0:00:04]} 36. Qxb4 {[%emt 0:03:42]}
Rf1+ {[%emt 0:00:26]} 37. Kd2 {[%emt 0:00:34]} Ra1 {[%emt 0:00:58]} 38. c3 {
[%emt 0:02:10]} Bg1 {[%emt 0:00:39]} 39. Bh5+ {[%emt 0:02:47]} Kg7 {[%emt 0:00:
24]} 40. Be2 {[%emt 0:05:56]} Rd7+ {[%emt 0:00:05]} 41. Kc2 {[%emt 0:00:50]}
Be3 {[%emt 0:00:14]} 42. Kb3 {[%emt 0:03:43]} Kf7 {[%emt 0:00:19]} 43. Bh5+ {
[%emt 0:00:41]} Kg7 {[%emt 0:00:48]} 44. Qb5 {[%emt 0:00:23]} Ra7 {[%emt 0:00:
21]} 45. Qxe5+ {[%emt 0:00:32]} Kh7 {[%emt 0:00:03]} 46. Be2 {[%emt 0:01:30]}
1-0